bitfinex-derivatives/quotes_SOLF0:USTF0_20250524
["timestamp","ask_amount","ask_price","bid_price","bid_amount"]
[1748072676711,5.7477,173.94,173.92,0.04303618]
[1748072677012,5.7477,173.94,173.92,5.79093618]
[1748072677217,0.0361526,173.95,173.92,0.04303618]
[1748072677716,0.0361526,173.95,173.93,5.7475]
[1748072679116,5.7832526,173.95,173.93,5.7475]
[1748072680918,0.0361526,173.95,173.93,5.7475]
[1748072682215,5.7834526,173.95,173.92,5.79093618]
[1748072682420,0.0361526,173.95,173.92,5.79093618]
[1748072682921,0.0361526,173.95,173.93,5.7477]
[1748072683622,5.7833526,173.95,173.92,5.79093618]
[1748072684822,5.7833526,173.95,173.93,5.7477]
[1748072685013,5.7833526,173.95,173.92,0.04303618]
[1748072685215,5.7476,173.94,173.92,0.04303618]
[1748072686016,5.7833526,173.95,173.92,5.79083618]
[1748072686322,0.0361526,173.95,173.92,0.04303618]
[1748072687123,5.7476,173.94,173.92,0.04303618]
[1748072688126,5.7476,173.94,173.92,5.79103618]
[1748072689227,5.7833526,173.95,173.92,5.79103618]
[1748072690318,0.0361526,173.95,173.93,5.7475]
[1748072691028,5.7834526,173.95,173.93,5.7475]
[1748072691322,5.7834526,173.95,173.92,5.79093618]
[1748072691828,5.7834526,173.95,173.93,5.7477]
[1748072692125,5.7834526,173.95,173.92,0.04303618]
[1748072692428,5.7834526,173.95,173.92,5.79083618]
[1748072692926,0.0361526,173.95,173.94,5.7474]
[1748072693125,10.60996626,174.02,173.93,3.42617864]
[1748072693433,3.42617864,174.01,173.94,1.8695]
[1748072693624,5.7459,173.99,173.96,5.7465]
[1748072693828,5.7459,173.99,173.95,116.38]
[1748072694032,3.42617864,174.01,173.95,116.38]
[1748072694334,0.04215132,173.99,173.97,5.7462]
[1748072694630,0.04215132,173.99,173.98,5.7461]
[1748072696127,10.60996626,174.04,174.01,5.745]
[1748072696328,14.0361449,174.04,174.01,5.745]
[1748072696727,19.7804449,174.04,174.01,5.745]
[1748072697236,16.39172721,174.04,174.01,5.78779701]
[1748072697529,10.64742721,174.04,174.01,0.04279701]
[1748072697729,0.03746095,174.04,174.01,0.04279701]
[1748072698631,0.03746095,174.04,174.02,5.7446]
[1748072698831,0.03746095,174.04,174.01,0.04279701]
[1748072699433,0.03746095,174.04,174.02,5.7448]
[1748072699634,0.03746095,174.04,174.03,116.34]
[1748072700237,5.78156095,174.04,174.03,116.34]
[1748072700433,0.03746095,174.04,174.02,116.34]
[1748072701039,0.03746095,174.04,174.01,0.04279701]
[1748072701437,5.7447,174.02,174.01,0.04279701]
[1748072702539,5.7447,174.02,174.01,9.701e-05]
[1748072702733,5.34763742,174.02,173.92,7.7569]
[1748072702937,5.34763742,174.02,173.92,118.3489]
[1748072703338,5.7471,173.96,173.92,124.0969]
[1748072703541,5.34763742,174.02,173.92,124.0969]
[1748072703838,5.7467,173.96,173.95,0.04020949]
[1748072704536,5.7465,173.97,173.95,0.04020949]
[1748072704742,0.04080915,173.99,173.95,0.04020949]
[1748072705238,5.7461,173.98,173.95,5.78700949]
[1748072705428,0.04080915,173.99,173.95,5.78700949]
[1748072706239,0.04080915,173.99,173.95,0.04020949]
[1748072706638,5.7466,173.97,173.95,0.04020949]
[1748072707638,5.7467,173.96,173.95,0.04020949]
[1748072708136,0.04080915,173.99,173.95,0.04020949]
[1748072708831,5.7461,173.98,173.95,0.04020949]
[1748072709642,5.78670915,173.99,173.96,5.7466]
[1748072710240,5.78670915,173.99,173.97,5.7464]
[1748072711340,0.04080915,173.99,173.97,5.7464]
[1748072711639,0.04080915,173.99,173.95,0.04020949]
[1748072711839,0.04080915,173.99,173.96,116.36]
[1748072712139,5.78660915,173.99,173.96,122.1065]
[1748072712343,0.04080915,173.99,173.96,122.1065]
[1748072713042,0.04080915,173.99,173.97,5.7463]
[1748072713242,0.04080915,173.99,173.96,116.36]
[1748072713546,0.04080915,173.99,173.96,118.2951]
[1748072713734,0.04080915,173.99,173.97,5.7464]
[1748072713933,5.78670915,173.99,173.96,118.2951]
[1748072714141,5.78670915,173.99,173.96,124.0416]
[1748072714941,5.78670915,173.99,173.97,5.7463]
[1748072715145,5.78670915,173.99,173.96,118.2951]
[1748072715339,0.04080915,173.99,173.96,118.2951]
[1748072716042,5.7461,173.98,173.96,118.2951]
[1748072716242,0.04080915,173.99,173.96,118.2951]
[1748072716445,5.7464,173.97,173.96,116.36]
[1748072717548,5.7467,173.96,173.95,0.04020949]
[1748072717954,5.7467,173.96,173.95,9.49e-06]
[1748072734561,5.7467,173.96,173.95,9.49e-06]
[1748072736259,5.749,173.89,173.88,116.32]
[1748072736459,5.35508993,173.95,173.87,3.9142]
[1748072736656,121.67508993,173.96,173.87,3.9142]
[1748072736865,5.7492,173.89,173.87,3.9142]
[1748072737058,121.67508993,173.96,173.87,3.9142]
[1748072737362,5.7484,173.91,173.9,0.04104689]
[1748072743366,0.03932409,173.93,173.9,0.04104689]
[1748072743665,0.03932409,173.93,173.92,5.748]
[1748072745566,0.03932409,173.93,173.91,5.7482]
[1748072746468,0.03932409,173.93,173.9,116.38104689]
[1748072746667,0.03932409,173.93,173.9,0.04104689]
[1748072747170,5.7484,173.91,173.9,0.04104689]
[1748072753264,5.7484,173.91,173.9,4.689e-05]
[1748072759572,0.03932409,173.93,173.9,4.689e-05]
[1748072759870,5.7483,173.92,173.9,4.689e-05]
[1748072760663,5.7483,173.92,173.9,5.74864689]
[1748072761272,0.03932409,173.93,173.9,4.689e-05]
[1748072761881,5.7484,173.91,173.9,4.689e-05]
[1748072765472,5.7508,173.84,173.8,116.28]
[1748072765665,121.63508993,173.92,173.8,122.2481]
[1748072765978,5.7517,173.81,173.8,1.8923]
[1748072768575,5.79274354,173.82,173.8,1.8923]
[1748072769573,5.7517,173.81,173.8,1.8923]
[1748072770980,5.79274354,173.82,173.8,7.6443]
[1748072771172,5.79274354,173.82,173.8,1.8923]
[1748072771783,0.04124354,173.82,173.8,1.8923]
[1748072772081,0.04124354,173.82,173.8,7.6442]
[1748072772281,5.7517,173.81,173.8,1.8923]
[1748072774776,5.752,173.8,173.79,0.03850378]
[1748072775879,0.04124354,173.82,173.7,5.36691844]
[1748072775880,116.36124354,173.82,173.7,5.36691844]
[1748072776081,5.3657043,173.8,173.72,5.7544]
[1748072776280,5.3657043,173.8,173.69,121.68691844]
[1748072776983,0.03731824,173.76,173.69,121.68691844]
[1748072777583,5.7551,173.71,173.69,121.68691844]
[1748072777782,121.6257043,173.77,173.69,121.68691844]
[1748072777783,0.03962397,173.72,173.69,121.68691844]
[1748072777979,116.26,173.77,173.69,121.68691844]
[1748072778185,121.6457043,173.81,173.69,121.68691844]
[1748072778389,121.6457043,173.81,173.73,5.754]
[1748072778585,5.7532,173.77,173.73,5.754]
[1748072778879,121.6457043,173.81,173.69,121.68691844]
[1748072779084,5.7542,173.74,173.73,0.04006051]
[1748072779284,0.04341399,173.77,173.73,0.04006051]
[1748072779783,0.04341399,173.77,173.73,5.79416051]
[1748072780082,0.04341399,173.77,173.73,0.04006051]
[1748072781784,5.7534,173.76,173.73,0.04006051]
[1748072781982,0.04341399,173.77,173.73,0.04006051]
[1748072782383,0.04341399,173.77,173.75,5.7535]
[1748072783577,0.04341399,173.77,173.74,118.3242]
[1748072784181,0.04341399,173.77,173.75,5.7534]
[1748072784582,0.04341399,173.77,173.74,118.3242]
[1748072784987,0.04341399,173.77,173.76,5.7533]
[1748072785293,0.04341399,173.77,173.74,120.3337]
[1748072786686,0.04341399,173.77,173.75,5.7534]
[1748072787184,0.04341399,173.77,173.74,126.0876]
[1748072787383,0.04341399,173.77,173.74,120.3337]
[1748072788589,0.04341399,173.77,173.75,5.7535]
[1748072790692,0.04341399,173.77,173.76,5.7533]
[1748072792581,0.04341399,173.77,173.75,5.7535]
[1748072793287,5.79661399,173.77,173.75,5.7535]
[1748072793489,5.79661399,173.77,173.74,126.0876]
[1748072793688,0.04341399,173.77,173.74,126.0876]
[1748072793986,5.7536,173.76,173.74,120.3337]
[1748072794988,0.04341399,173.77,173.74,126.0875]
[1748072795491,5.7537,173.75,173.74,2.0242]
[1748072797196,5.7535,173.76,173.74,2.0242]
[1748072798095,5.7535,173.76,173.74,7.778]
[1748072798994,5.79661399,173.77,173.74,7.778]
[1748072800296,5.79661399,173.77,173.75,5.7536]
[1748072800592,0.04341399,173.77,173.74,2.0242]
[1748072800987,0.04341399,173.77,173.74,7.778]
[1748072801796,5.79651399,173.77,173.74,7.778]
[1748072802699,5.7534,173.76,173.74,7.778]
[1748072803999,5.7537,173.75,173.74,2.0242]
[1748072804300,0.04341399,173.77,173.74,2.0242]
[1748072804999,0.04341399,173.77,173.74,7.778]
[1748072806010,5.7534,173.76,173.74,7.778]
[1748072807299,5.7534,173.76,173.74,2.0242]
[1748072808503,5.79661399,173.77,173.74,7.778]
[1748072809004,5.79661399,173.77,173.74,2.0242]
[1748072809205,5.79661399,173.77,173.75,5.7536]
[1748072809505,5.79661399,173.77,173.74,2.0242]
[1748072809705,5.79661399,173.77,173.74,7.7781]
[1748072810303,0.04341399,173.77,173.74,2.0242]
[1748072811106,5.7533,173.76,173.74,2.0242]
[1748072811499,0.04341399,173.77,173.74,2.0242]
[1748072812309,5.7537,173.75,173.74,2.0242]
[1748072813008,5.754,173.74,173.73,116.34006051]
[1748072813522,5.7538,173.75,173.73,116.34006051]
[1748072815208,5.7538,173.75,173.73,122.09436051]
[1748072815605,5.754,173.74,173.73,116.34006051]
[1748072815805,0.04341399,173.77,173.73,116.34006051]
[1748072816006,0.04341399,173.77,173.74,5.7538]
[1748072816200,5.79661399,173.77,173.73,116.34006051]
[1748072816400,0.04341399,173.77,173.73,116.34006051]
[1748072816707,0.04341399,173.77,173.74,5.7537]
[1748072816708,5.7536,173.76,173.74,5.7537]
[1748072817400,5.7539,173.75,173.73,122.09436051]
[1748072817596,5.7539,173.75,173.73,116.34006051]
[1748072818711,5.7539,173.75,173.73,122.09426051]
[1748072818912,0.04341399,173.77,173.73,116.34006051]
[1748072819314,5.79661399,173.77,173.74,5.7539]
[1748072819713,5.79661399,173.77,173.73,116.34006051]
[1748072819901,5.79661399,173.77,173.75,5.7534]
[1748072820213,116.3,173.83,173.73,116.34006051]
[1748072820409,10.60996626,173.85,173.77,5.7528]
[1748072820809,10.60996626,173.85,173.77,116.28]
[1748072821414,0.04193574,173.83,173.79,0.03798198]
[1748072821607,5.7516,173.82,173.79,5.79018198]
[1748072823215,0.04193574,173.83,173.79,5.79018198]
[1748072823415,0.04193574,173.83,173.79,0.03798198]
[1748072824920,5.7515,173.82,173.79,5.79028198]
[1748072825110,0.04193574,173.83,173.79,5.79028198]
[1748072825617,5.7517,173.82,173.79,5.79028198]
[1748072825814,0.04193574,173.83,173.8,5.7518]
[1748072826318,0.04193574,173.83,173.79,5.79018198]
[1748072826615,0.04193574,173.83,173.79,0.03798198]
[1748072826817,5.752,173.8,173.79,0.03798198]
[1748072827020,0.04193574,173.83,173.79,0.03798198]
[1748072827814,5.79323574,173.83,173.8,5.7518]
[1748072828318,0.04193574,173.83,173.79,0.03798198]
[1748072828719,5.7514,173.82,173.79,5.79008198]
[1748072829111,0.04193574,173.83,173.79,5.79008198]
[1748072829821,5.7516,173.82,173.8,5.752]
[1748072830217,0.04193574,173.83,173.79,0.03798198]
[1748072831319,5.7516,173.82,173.79,5.79018198]
[1748072831518,0.04193574,173.83,173.79,0.03798198]
[1748072831921,5.79313574,173.83,173.8,5.7518]
[1748072832218,0.04193574,173.83,173.8,5.7518]
[1748072832818,5.79323574,173.83,173.8,5.7518]
[1748072833021,0.04193574,173.83,173.8,5.7518]
[1748072833221,5.7514,173.82,173.8,5.7518]
[1748072833824,5.79313574,173.83,173.8,5.7518]
[1748072834623,5.7514,173.82,173.8,5.7518]
[1748072835024,5.7514,173.82,173.79,5.79018198]
[1748072835624,5.7514,173.82,173.8,5.752]
[1748072836032,5.752,173.8,173.79,8.198e-05]
[1748072850541,5.3657043,173.77,173.69,116.22]
[1748072850836,5.7552,173.71,173.69,116.22]
[1748072851629,5.79852614,173.72,173.69,116.22]
[1748072851938,5.79852614,173.72,173.69,121.9754]
[1748072852234,0.04372614,173.72,173.69,116.22]
[1748072852537,0.04372614,173.72,173.7,5.7551]
[1748072852840,0.04372614,173.72,173.69,116.22]
[1748072853029,0.04372614,173.72,173.71,5.755]
[1748072855930,0.04372614,173.72,173.7,5.7552]
[1748072856237,0.04372614,173.72,173.69,116.22]
[1748072857037,0.04372614,173.72,173.71,5.755]
[1748072863342,0.04372614,173.72,173.7,7.6526]
[1748072864141,0.04372614,173.72,173.71,5.755]
[1748072864336,0.04372614,173.72,173.7,1.8973]
[1748072865344,5.755,173.71,173.69,116.24]
[1748072867643,5.7553,173.7,173.69,116.24]
[1748072868147,0.04372614,173.72,173.69,116.24]
[1748072868349,5.7551,173.71,173.69,116.24]
[1748072868947,5.7551,173.71,173.69,121.9956]
[1748072869147,5.79852614,173.72,173.69,121.9956]
[1748072869348,0.04372614,173.72,173.69,116.24]
[1748072869546,5.7552,173.71,173.69,116.24]
[1748072869848,0.04372614,173.72,173.69,116.24]
[1748072870045,0.04372614,173.72,173.69,121.9955]
[1748072870246,5.79852614,173.72,173.69,121.9955]
[1748072870448,0.04372614,173.72,173.69,121.9955]
[1748072870944,5.79852614,173.72,173.69,121.9955]
[1748072871446,0.04372614,173.72,173.69,116.24]
[1748072872749,5.7552,173.71,173.69,116.24]
[1748072873246,5.7554,173.7,173.68,0.03782317]
[1748072873448,5.7554,173.7,173.68,116.25782317]
[1748072874550,5.7554,173.7,173.68,122.01362317]
[1748072875251,5.7554,173.7,173.68,0.03782317]
[1748072875550,5.7554,173.7,173.68,116.25782317]
[1748072878350,0.04372614,173.72,173.68,116.25782317]
[1748072878954,5.7556,173.7,173.68,116.25782317]
[1748072879649,0.04372614,173.72,173.68,116.25782317]
[1748072879650,5.7557,173.69,173.68,116.25782317]
[1748072880353,0.04372614,173.72,173.68,122.01372317]
[1748072880753,0.04372614,173.72,173.68,116.25782317]
[1748072881059,5.7552,173.71,173.69,5.7554]
[1748072881251,0.04372614,173.72,173.68,0.03782317]
[1748072881553,5.7557,173.69,173.68,0.03782317]
[1748072882557,5.7557,173.69,173.68,2.317e-05]
[1748072882950,5.76,173.69,173.62,4.89115541]
[1748072883256,5.76,173.69,173.61,5.36691844]
[1748072883257,3.43560124,173.63,173.61,5.36691844]
[1748072883462,5.758,173.62,173.61,5.36691844]
[1748072883655,121.59427464,173.68,173.61,5.36691844]
[1748072883850,0.04419441,173.66,173.61,5.36691844]
[1748072884549,5.758,173.63,173.61,5.36691844]
[1748072884747,5.758,173.63,173.59,5.7588]
[1748072884951,5.7576,173.64,173.57,116.22]
[1748072885147,0.03646435,173.62,173.52,5.36691844]
[1748072885347,0.03646435,173.62,173.54,2.0488]
[1748072885552,5.79456435,173.62,173.54,2.0488]
[1748072886051,0.03646435,173.62,173.54,2.0488]
[1748072886652,5.79456435,173.62,173.59,5.7588]
[1748072886854,5.79456435,173.62,173.57,116.24]
[1748072887056,5.79456435,173.62,173.58,5.759]
[1748072887352,5.79456435,173.62,173.57,116.24]
[1748072887558,0.03646435,173.62,173.57,116.24]
[1748072888952,0.03646435,173.62,173.6,5.7584]
[1748072889160,0.03646435,173.62,173.57,116.24]
[1748072889559,0.03646435,173.62,173.61,5.7583]
[1748072891060,10.60996626,173.74,173.65,5.757]
[1748072891246,116.26,173.73,173.62,1.878]
[1748072891453,116.26,173.73,173.62,3.9438]
[1748072891653,5.7562,173.68,173.65,5.7569]
[1748072891960,116.26,173.73,173.62,3.9438]
[1748072892260,0.03839324,173.69,173.66,0.04249283]
[1748072893562,5.7563,173.67,173.66,0.04249283]
[1748072894865,116.29839324,173.69,173.59,116.26]
[1748072895162,116.26,173.69,173.61,5.7581]
[1748072895767,0.04306204,173.67,173.61,5.7581]
[1748072896363,0.04306204,173.67,173.6,116.26]
[1748072896666,0.03713749,173.65,173.6,116.26]
[1748072896864,5.7575,173.64,173.6,116.26]
[1748072897068,5.7575,173.64,173.61,5.7581]
[1748072898262,5.79413749,173.65,173.62,5.7578]
[1748072899465,0.03713749,173.65,173.63,5.7576]
[1748072900268,0.03713749,173.65,173.6,116.26]
[1748072900669,5.79423749,173.65,173.62,5.7578]
[1748072901065,0.03713749,173.65,173.6,116.26]
[1748072901470,5.79433749,173.65,173.6,116.26]
[1748072901670,0.03713749,173.65,173.6,116.26]
[1748072902076,5.7574,173.64,173.61,5.7581]
[1748072902866,0.03713749,173.65,173.61,5.7581]
[1748072903271,5.7575,173.64,173.61,5.7581]
[1748072905174,5.7575,173.64,173.62,5.7579]
[1748072905367,0.03713749,173.65,173.62,5.7579]
[1748072905872,5.79433749,173.65,173.62,5.7579]
[1748072906373,5.7573,173.64,173.61,5.7582]
[1748072906575,5.7573,173.64,173.59,119.63815639]
[1748072907066,5.7573,173.64,173.62,5.7579]
[1748072909373,5.79423749,173.65,173.62,5.7579]
[1748072911669,5.79423749,173.65,173.59,119.63815639]
[1748072911876,0.03713749,173.65,173.63,5.7576]
[1748072912279,5.79433749,173.65,173.62,5.7577]
[1748072913281,5.7573,173.64,173.62,5.7577]
[1748072915580,5.7573,173.64,173.61,5.7581]
[1748072915785,5.7573,173.64,173.59,116.2]
[1748072915974,5.7573,173.64,173.59,119.63815639]
[1748072916281,5.7573,173.64,173.61,5.758]
[1748072917484,5.7573,173.64,173.62,5.758]
[1748072918692,5.7573,173.64,173.61,5.7582]
[1748072919286,3.43985939,173.63,173.57,118.1995]
[1748072919879,5.759,173.6,173.57,118.1995]
[1748072920184,5.80184748,173.6,173.57,118.1995]
[1748072920379,5.759,173.59,173.57,118.1995]
[1748072920984,5.80164748,173.6,173.57,123.9591]
[1748072921389,5.7592,173.59,173.57,118.1995]
[1748072921588,0.04284748,173.6,173.55,3.9392]
[1748072921886,5.761,173.53,173.52,5.36691844]
[1748072922088,3.44023277,173.53,173.48,5.36691844]
[1748072922287,3.44023277,173.51,173.48,5.36691844]
[1748072922485,3.44023277,173.53,173.48,5.36691844]
[1748072923190,3.44023277,173.53,173.49,116.22]
[1748072923696,0.03738207,173.54,173.49,116.22]
[1748072924187,0.03738207,173.54,173.48,5.36691844]
[1748072924491,0.03738207,173.54,173.48,121.58691844]
[1748072924688,0.03738207,173.54,173.49,5.762]
[1748072925091,0.03738207,173.54,173.46,109.42]
[1748072925092,0.03738207,173.54,173.47,116.24]
[1748072926299,0.03738207,173.54,173.51,5.7615]
[1748072926999,5.79808207,173.54,173.51,5.7615]
[1748072927292,0.03738207,173.54,173.44,5.8937]
[1748072927499,5.7613,173.52,173.45,225.68]
[1748072927697,0.04412725,173.5,173.45,225.68]
[1748072927901,0.04412725,173.5,173.49,5.7623]
[1748072929505,0.04412725,173.5,173.48,122.0225]
[1748072930105,0.04412725,173.5,173.48,116.26]
[1748072930999,0.04412725,173.5,173.47,5.7629]
[1748072931299,5.80632725,173.5,173.46,121.9832]
[1748072931498,5.80632725,173.5,173.46,116.22]
[1748072931697,0.04412725,173.5,173.46,116.22]
[1748072932403,0.04412725,173.5,173.49,5.7623]
[1748072933605,0.04412725,173.5,173.48,5.7625]
[1748072934309,0.04412725,173.5,173.49,5.7623]
[1748072934703,0.04412725,173.5,173.48,5.7625]
[1748072936108,0.04412725,173.5,173.49,5.7623]
[1748072936306,0.04412725,173.5,173.46,116.22]
[1748072938006,0.04412725,173.5,173.48,5.7624]
[1748072938798,0.04412725,173.5,173.49,5.7623]
[1748072940815,116.24,173.63,173.48,5.3810214]
[1748072941109,148.43758186,173.67,173.52,5.3810214]
[1748072941311,148.43758186,173.67,173.57,5.7594]
[1748072941609,148.43758186,173.67,173.57,121.9994]
[1748072941809,0.03788575,173.62,173.59,0.04099605]
[1748072942618,5.79598575,173.62,173.59,0.04099605]
[1748072942917,0.03788575,173.62,173.59,0.04099605]
[1748072943815,5.7586,173.6,173.59,0.04099605]
[1748072945320,0.03788575,173.62,173.59,0.04099605]
[1748072945513,0.03788575,173.62,173.6,116.22]
[1748072945816,0.03788575,173.62,173.61,5.7583]
[1748072946215,10.60996626,173.7,173.6,116.22]
[1748072946411,5.7559,173.69,173.65,5.7568]
[1748072947316,5.79716119,173.69,173.65,5.80040829]
[1748072947616,5.7561,173.68,173.65,0.04360829]
[1748072948016,0.04126119,173.69,173.65,0.04360829]
[1748072948215,5.7561,173.68,173.65,0.04360829]
[1748072948515,0.04126119,173.69,173.65,0.04360829]
[1748072948713,0.04126119,173.69,173.65,5.80050829]
[1748072949114,0.04126119,173.69,173.65,0.04360829]
[1748072949511,10.60996626,173.73,173.65,0.04360829]
[1748072949710,5.7544,173.73,173.69,5.7554]
[1748072949910,5.7544,173.73,173.69,121.9554]
[1748072950415,5.79628117,173.73,173.69,121.99495145]
[1748072950717,5.79628117,173.73,173.69,116.23955145]
[1748072951321,5.79628117,173.73,173.69,121.99515145]
[1748072952317,0.04188117,173.73,173.7,5.7553]
[1748072952518,0.04188117,173.73,173.69,116.23955145]
[1748072953318,5.79648117,173.73,173.69,121.99495145]
[1748072955223,5.79648117,173.73,173.7,5.7553]
[1748072955521,5.79648117,173.73,173.69,116.23955145]
[1748072956326,5.7548,173.72,173.69,116.23955145]
[1748072957424,5.7548,173.72,173.7,116.16]
[1748072958023,5.7548,173.72,173.69,0.03955145]
[1748072958225,5.7548,173.72,173.7,116.14]
[1748072959925,0.04188117,173.73,173.7,116.14]
[1748072960229,5.7549,173.72,173.7,116.14]
[1748072962434,0.04188117,173.73,173.7,116.14]
[1748072963232,0.04188117,173.73,173.69,5.79515145]
[1748072963430,0.04188117,173.73,173.69,121.87515145]
[1748072963733,5.7547,173.72,173.69,121.87515145]
[1748072964235,5.79628117,173.73,173.69,121.87515145]
[1748072964433,5.79628117,173.73,173.7,5.7553]
[1748072964731,0.04188117,173.73,173.69,116.11955145]
[1748072965122,0.04188117,173.73,173.71,5.7548]
[1748072965323,0.04188117,173.73,173.69,116.11955145]
[1748072965632,0.04188117,173.73,173.72,5.7547]
[1748072966026,116.08,173.81,173.69,116.11955145]
[1748072966323,116.08,173.81,173.69,116.08]
[1748072966633,5.7534,173.76,173.72,5.7545]
[1748072966822,5.7534,173.76,173.73,116.08]
[1748072967025,5.79147159,173.76,173.73,116.12249639]
[1748072967538,0.03807159,173.76,173.73,121.87679639]
[1748072968128,0.03807159,173.76,173.73,116.12249639]
[1748072968937,0.03807159,173.76,173.74,5.754]
[1748072971536,0.03807159,173.76,173.75,5.7537]
[1748072973936,0.03807159,173.76,173.74,5.7539]
[1748072974537,0.03807159,173.76,173.73,116.12249639]
[1748072975041,0.03807159,173.76,173.75,5.7537]
[1748072975738,0.03807159,173.76,173.75,115.1137]
[1748072975935,0.03807159,173.76,173.75,117.1512]
[1748072976443,5.3810214,173.86,173.75,111.3975]
[1748072977039,5.7524,173.79,173.76,5.7531]
[1748072977235,5.3810214,173.86,173.75,2.0375]
[1748072977438,0.03897308,173.79,173.76,116.06]
[1748072977641,0.03887158,173.79,173.76,116.10267885]
[1748072977942,5.79137158,173.79,173.76,116.10267885]
[1748072978133,0.03887158,173.79,173.76,116.10267885]
[1748072978841,0.03887158,173.79,173.77,5.7528]
[1748072979442,0.03887158,173.79,173.76,121.85597885]
[1748072980544,0.03887158,173.79,173.77,5.7531]
[1748072980747,5.79127158,173.79,173.76,116.10267885]
[1748072981143,5.79127158,173.79,173.76,121.85577885]
[1748072981342,0.03887158,173.79,173.76,116.10267885]
[1748072982643,0.03887158,173.79,173.77,5.7529]
[1748072983144,0.03887158,173.79,173.76,116.10267885]
[1748072983339,0.03887158,173.79,173.76,0.04267885]
[1748072983644,5.41989298,173.79,173.76,0.04267885]
[1748072983841,5.7531,173.77,173.76,0.04267885]
[1748072984342,5.7529,173.78,173.76,0.04267885]
[1748072984537,5.7529,173.78,173.76,116.08267885]
[1748072984839,0.03887158,173.79,173.76,116.08267885]
[1748072985547,5.79137158,173.79,173.76,121.83607885]
[1748072985840,0.03887158,173.79,173.76,121.83607885]
[1748072986042,0.03887158,173.79,173.76,116.08267885]
[1748072986244,0.03887158,173.79,173.78,5.7527]
[1748072989850,5.7503,173.86,173.82,5.7513]
[1748072990042,5.7503,173.86,173.82,121.7913]
[1748072990950,5.78791454,173.86,173.82,121.83461317]
[1748072991241,0.03761454,173.86,173.82,0.04331317]
[1748072991447,0.03761454,173.86,173.83,116.0]
[1748072991848,5.78781454,173.86,173.83,116.0]
[1748072992241,0.03761454,173.86,173.83,116.0]
[1748072992950,0.03761454,173.86,173.84,5.7508]
[1748072993143,0.03761454,173.86,173.83,116.0]
[1748072993749,0.03761454,173.86,173.84,5.7506]
[1748072997052,0.03761454,173.86,173.83,116.0]
[1748072997854,5.7507,173.85,173.83,116.0]
[1748072998353,5.78781454,173.86,173.83,116.0]
[1748072998653,0.03761454,173.86,173.83,116.0]
[1748072999352,5.7506,173.85,173.83,116.0]
[1748073000455,5.7508,173.84,173.83,116.0]
[1748073001356,5.7511,173.83,173.82,0.04331317]
[1748073008156,5.7511,173.83,173.82,1.317e-05]
[1748073008359,5.76,173.83,173.76,115.98]
[1748073008655,5.3810214,173.81,173.74,115.98]
[1748073009258,0.0414901,173.79,173.76,5.79681467]
[1748073009563,5.7940901,173.79,173.76,5.79681467]
[1748073010061,0.0414901,173.79,173.76,0.04351467]
[1748073010465,5.7531,173.77,173.76,0.04351467]
[1748073010657,0.0414901,173.79,173.76,0.04351467]
[1748073012566,5.7528,173.78,173.76,5.79681467]
[1748073012863,5.7528,173.78,173.76,0.04351467]
[1748073013161,5.7939901,173.79,173.76,5.79691467]
[1748073013465,0.0414901,173.79,173.76,5.79691467]
[1748073014563,5.7528,173.78,173.76,5.79691467]
[1748073015267,5.7939901,173.79,173.76,5.79691467]
[1748073015457,0.0414901,173.79,173.76,0.04351467]
[1748073016667,5.7938901,173.79,173.76,0.04351467]
[1748073017066,5.7938901,173.79,173.76,5.79671467]
[1748073017768,5.7527,173.78,173.76,5.79671467]
[1748073018567,5.7939901,173.79,173.76,5.79671467]
[1748073019468,5.7527,173.78,173.76,0.04351467]
[1748073021071,5.7939901,173.79,173.76,0.04351467]
[1748073021275,0.0414901,173.79,173.76,0.04351467]
[1748073022176,0.0414901,173.79,173.78,5.7527]
[1748073022474,0.0414901,173.79,173.78,121.6927]
[1748073022976,10.60996626,173.86,173.81,5.7517]
[1748073023178,10.60996626,173.86,173.78,115.94]
[1748073023478,5.7506,173.85,173.79,109.32]
[1748073023671,10.60996626,173.86,173.79,109.32]
[1748073023872,0.04214059,173.84,173.81,0.04242335]
[1748073024171,0.04214059,173.84,173.83,5.7511]
[1748073047889,4.059e-05,173.84,173.83,5.7511]
[1748073049299,10.60996626,173.96,173.9,5.7485]